[Event "Titled Tuesday Blitz December 20 Early 2022"]
[White "Nemegejas"]
[Black "Aygehovit1992"]
[WhiteElo "2883"]
[BlackElo "2682"]
[Result "1-0"]
[Round "03"]
[TimeControl "180+2"]
[Date "2022.12.20"]
[WhiteClock "0:01:06"]
[BlackClock "0:00:11"]

1. Nf3 {[%clk 0:03:00]}  Nf6 {[%clk 0:02:59]} 2. b3 {[%clk 0:03:01]}  g6 {[%clk 0:02:58]} 3. Bb2 {[%clk 0:03:02]}  Bg7 {[%clk 0:02:58]} 4. e3 {[%clk 0:03:02]}  c5 {[%clk 0:02:55]} 5. c4 {[%clk 0:03:02]}  b6 {[%clk 0:02:53]} 6. Nc3 {[%clk 0:03:02]}  Bb7 {[%clk 0:02:53]} 7. d4 {[%clk 0:03:02]}  cxd4 {[%clk 0:02:50]} 8. Qxd4 {[%clk 0:03:03]}  Nc6 {[%clk 0:02:49]} 9. Qd2 {[%clk 0:03:03]}  O-O {[%clk 0:02:47]} 10. Be2 {[%clk 0:03:04]}  Qb8 {[%clk 0:02:40]} 11. O-O {[%clk 0:03:02]}  e6 {[%clk 0:02:39]} 12. Rfd1 {[%clk 0:03:01]}  Rd8 {[%clk 0:02:39]} 13. h3 {[%clk 0:03:00]}  a6 {[%clk 0:02:39]} 14. Rac1 {[%clk 0:03:00]}  Ra7 {[%clk 0:02:21]} 15. Na4 {[%clk 0:02:53]}  Ba8 {[%clk 0:02:19]} 16. Qd6 {[%clk 0:02:50]}  Qxd6 {[%clk 0:02:13]} 17. Rxd6 {[%clk 0:02:51]}  Ne4 {[%clk 0:02:10]} 18. Rdd1 {[%clk 0:02:50]}  Bxb2 {[%clk 0:02:07]} 19. Nxb2 {[%clk 0:02:51]}  Nb4 {[%clk 0:02:04]} 20. a3 {[%clk 0:02:37]}  Na2 {[%clk 0:02:04]} 21. Rc2 {[%clk 0:02:34]}  Nac3 {[%clk 0:02:05]} 22. Rdc1 {[%clk 0:02:31]}  Nxe2+ {[%clk 0:02:03]} 23. Rxe2 {[%clk 0:02:32]}  d5 {[%clk 0:02:02]} 24. Rec2 {[%clk 0:02:32]}  f6 {[%clk 0:01:44]} 25. b4 {[%clk 0:02:30]}  e5 {[%clk 0:01:40]} 26. cxd5 {[%clk 0:02:27]}  Bxd5 {[%clk 0:01:39]} 27. Na4 {[%clk 0:02:27]}  b5 {[%clk 0:01:32]} 28. Rc8 {[%clk 0:02:26]}  Rxc8 {[%clk 0:01:31]} 29. Rxc8+ {[%clk 0:02:26]}  Kg7 {[%clk 0:01:28]} 30. Nb6 {[%clk 0:02:26]}  Bb3 {[%clk 0:01:18]} 31. Ne1 {[%clk 0:02:20]}  Nd6 {[%clk 0:01:13]} 32. Rc3 {[%clk 0:02:17]}  Nc4 {[%clk 0:01:05]} 33. Nc8 {[%clk 0:02:05]}  Rc7 {[%clk 0:01:05]} 34. Nd6 {[%clk 0:02:05]}  Rd7 {[%clk 0:01:06]} 35. Nxb5 {[%clk 0:01:14]}  Rd1 {[%clk 0:00:59]} 36. Kf1 {[%clk 0:01:13]}  axb5 {[%clk 0:00:28]} 37. Rxb3 {[%clk 0:01:13]}  Ra1 {[%clk 0:00:29]} 38. Ke2 {[%clk 0:01:11]}  Ra2+ {[%clk 0:00:29]} 39. Kd1 {[%clk 0:01:07]}  Rxf2 {[%clk 0:00:25]} 40. Rc3 {[%clk 0:01:08]}  Rxg2 {[%clk 0:00:24]} 41. Nxg2 {[%clk 0:01:07]}  f5 {[%clk 0:00:18]} 42. a4 {[%clk 0:01:07]}  Nb2+ {[%clk 0:00:18]} 43. Kc2 {[%clk 0:01:07]}  Nxa4 {[%clk 0:00:18]} 44. Rc6 {[%clk 0:01:07]}  g5 {[%clk 0:00:17]} 45. Ne1 {[%clk 0:01:06]}  e4 {[%clk 0:00:17]} 46. Ng2 {[%clk 0:01:05]}  h5 {[%clk 0:00:13]} 47. h4 {[%clk 0:01:06]}  g4 {[%clk 0:00:11]} 48. Nf4 {[%clk 0:01:06]} 1-0


[Site "https://www.chess.com"]

[Event "Titled Tuesday Blitz December 20 Early 2022"]
[White "Orange_Ghost"]
[Black "VincentKeymer"]
[WhiteElo "2740"]
[BlackElo "2980"]
[Result "0-1"]
[Round "03"]
[TimeControl "180+2"]
[Date "2022.12.20"]
[WhiteClock "0:00:06"]
[BlackClock "0:00:05"]

1. d4 {[%clk 0:03:00]}  Nf6 {[%clk 0:03:00]} 2. c4 {[%clk 0:02:59]}  e6 {[%clk 0:03:00]} 3. Nc3 {[%clk 0:02:53]}  Bb4 {[%clk 0:02:59]} 4. Qc2 {[%clk 0:02:52]}  c5 {[%clk 0:02:58]} 5. dxc5 {[%clk 0:02:52]}  O-O {[%clk 0:02:58]} 6. Nf3 {[%clk 0:02:52]}  Na6 {[%clk 0:02:58]} 7. g3 {[%clk 0:02:53]}  Nxc5 {[%clk 0:02:58]} 8. Bg2 {[%clk 0:02:53]}  Nce4 {[%clk 0:02:59]} 9. O-O {[%clk 0:02:54]}  Bxc3 {[%clk 0:02:59]} 10. bxc3 {[%clk 0:02:55]}  d5 {[%clk 0:02:59]} 11. Ng5 {[%clk 0:02:42]}  Nd6 {[%clk 0:02:50]} 12. cxd5 {[%clk 0:02:39]}  exd5 {[%clk 0:02:50]} 13. Bf4 {[%clk 0:02:13]}  h6 {[%clk 0:02:34]} 14. Nf3 {[%clk 0:02:12]}  Bf5 {[%clk 0:02:19]} 15. Qb3 {[%clk 0:02:11]}  Be4 {[%clk 0:02:13]} 16. Qb4 {[%clk 0:02:04]}  Nc4 {[%clk 0:01:12]} 17. Qxb7 {[%clk 0:01:56]}  Re8 {[%clk 0:01:02]} 18. Rfd1 {[%clk 0:01:37]}  g5 {[%clk 0:01:00]} 19. Bc1 {[%clk 0:00:55]}  Qb6 {[%clk 0:00:42]} 20. Qxb6 {[%clk 0:00:53]}  axb6 {[%clk 0:00:43]} 21. Bf1 {[%clk 0:00:46]}  Bc2 {[%clk 0:00:32]} 22. Rd4 {[%clk 0:00:37]}  Ne4 {[%clk 0:00:25]} 23. h4 {[%clk 0:00:20]}  g4 {[%clk 0:00:22]} 24. Ne1 {[%clk 0:00:20]}  Bb3 {[%clk 0:00:21]} 25. Bxh6 {[%clk 0:00:19]}  Bxa2 {[%clk 0:00:18]} 26. Rxd5 {[%clk 0:00:17]}  Nxc3 {[%clk 0:00:18]} 27. Rg5+ {[%clk 0:00:18]}  Kh7 {[%clk 0:00:18]} 28. Bg7 {[%clk 0:00:15]}  Ne4 {[%clk 0:00:16]} 29. Rxg4 {[%clk 0:00:14]}  f5 {[%clk 0:00:17]} 30. Rxe4 {[%clk 0:00:12]}  fxe4 {[%clk 0:00:18]} 31. Bd4 {[%clk 0:00:13]}  b5 {[%clk 0:00:15]} 32. Nc2 {[%clk 0:00:12]}  Bb3 {[%clk 0:00:14]} 33. Rc1 {[%clk 0:00:12]}  Bxc2 {[%clk 0:00:11]} 34. Rxc2 {[%clk 0:00:13]}  Rac8 {[%clk 0:00:09]} 35. e3 {[%clk 0:00:13]}  Ne5 {[%clk 0:00:07]} 36. Rxc8 {[%clk 0:00:08]}  Nf3+ {[%clk 0:00:07]} 37. Kg2 {[%clk 0:00:09]}  Rxc8 {[%clk 0:00:08]} 38. Bxb5 {[%clk 0:00:09]}  Rc1 {[%clk 0:00:06]} 39. Bd7 {[%clk 0:00:08]}  Kg6 {[%clk 0:00:05]} 40. Bb6 {[%clk 0:00:07]}  Rg1+ {[%clk 0:00:03]} 41. Kh3 {[%clk 0:00:08]}  Rh1+ {[%clk 0:00:04]} 42. Kg4 {[%clk 0:00:08]}  Ne5+ {[%clk 0:00:04]} 43. Kf4 {[%clk 0:00:08]}  Nxd7 {[%clk 0:00:05]} 44. Bd4 {[%clk 0:00:09]}  Rh2 {[%clk 0:00:04]} 45. g4 {[%clk 0:00:07]}  Rxf2+ {[%clk 0:00:04]} 46. Kxe4 {[%clk 0:00:08]}  Nf6+ {[%clk 0:00:03]} 47. Bxf6 {[%clk 0:00:07]}  Kxf6 {[%clk 0:00:04]} 48. g5+ {[%clk 0:00:06]}  Ke6 {[%clk 0:00:05]} 49. h5 {[%clk 0:00:06]}  Rh2 {[%clk 0:00:04]} 50. h6 {[%clk 0:00:06]}  Rh4+ {[%clk 0:00:05]} 51. Kf3 {[%clk 0:00:07]}  Kf5 {[%clk 0:00:05]} 52. h7 {[%clk 0:00:06]}  Kxg5 {[%clk 0:00:05]} 0-1


[Site "https://www.chess.com"]

[Event "Titled Tuesday Blitz December 20 Early 2022"]
[White "Pietrek, Gerhard"]
[Black "stolencandy13"]
[WhiteFideId "24631698"]
[WhiteElo "1596"]
[BlackElo "2599"]
[Result "1-0"]
[Round "03"]
[TimeControl "180+2"]
[Date "2022.12.20"]
[WhiteClock "0:01:02"]
[BlackClock "0:00:03"]

1. Nf3 {[%clk 0:03:00]}  d5 {[%clk 0:02:59]} 2. c4 {[%clk 0:02:56]}  c6 {[%clk 0:02:58]} 3. e3 {[%clk 0:02:55]}  Nf6 {[%clk 0:02:56]} 4. b3 {[%clk 0:02:55]}  e6 {[%clk 0:02:56]} 5. Bb2 {[%clk 0:02:55]}  Nbd7 {[%clk 0:02:57]} 6. Be2 {[%clk 0:02:54]}  Bd6 {[%clk 0:02:54]} 7. O-O {[%clk 0:02:54]}  O-O {[%clk 0:02:55]} 8. Nc3 {[%clk 0:02:51]}  e5 {[%clk 0:02:41]} 9. cxd5 {[%clk 0:02:49]}  cxd5 {[%clk 0:02:42]} 10. Nb5 {[%clk 0:02:49]}  Bb8 {[%clk 0:02:41]} 11. Ba3 {[%clk 0:02:47]}  Re8 {[%clk 0:02:35]} 12. Nd6 {[%clk 0:02:48]}  Bxd6 {[%clk 0:02:28]} 13. Bxd6 {[%clk 0:02:49]}  Ne4 {[%clk 0:02:13]} 14. Ba3 {[%clk 0:02:43]}  Ndf6 {[%clk 0:02:07]} 15. Bb2 {[%clk 0:02:34]}  d4 {[%clk 0:01:43]} 16. exd4 {[%clk 0:02:32]}  exd4 {[%clk 0:01:44]} 17. Bxd4 {[%clk 0:02:28]}  Bg4 {[%clk 0:01:41]} 18. d3 {[%clk 0:02:11]}  Bxf3 {[%clk 0:01:27]} 19. Bxf3 {[%clk 0:02:12]}  Qxd4 {[%clk 0:01:26]} 20. dxe4 {[%clk 0:02:12]}  Qxd1 {[%clk 0:01:20]} 21. Raxd1 {[%clk 0:02:12]}  Nxe4 {[%clk 0:01:19]} 22. Rd7 {[%clk 0:02:12]}  Nc5 {[%clk 0:01:08]} 23. Rc7 {[%clk 0:02:11]}  Rac8 {[%clk 0:01:06]} 24. Rxc8 {[%clk 0:02:10]}  Rxc8 {[%clk 0:01:06]} 25. Rc1 {[%clk 0:02:10]}  Rc7 {[%clk 0:00:59]} 26. b4 {[%clk 0:02:07]}  Ne6 {[%clk 0:00:57]} 27. Rxc7 {[%clk 0:02:08]}  Nxc7 {[%clk 0:00:58]} 28. Bxb7 {[%clk 0:02:08]}  Kf8 {[%clk 0:00:57]} 29. Kf1 {[%clk 0:02:06]}  Ke7 {[%clk 0:00:57]} 30. Ke2 {[%clk 0:02:06]}  Kd6 {[%clk 0:00:58]} 31. Kd3 {[%clk 0:02:06]}  Ne6 {[%clk 0:00:57]} 32. g3 {[%clk 0:02:04]}  g5 {[%clk 0:00:48]} 33. Kc4 {[%clk 0:01:59]}  h5 {[%clk 0:00:45]} 34. h3 {[%clk 0:01:57]}  f6 {[%clk 0:00:44]} 35. Bc8 {[%clk 0:01:48]}  Nc7 {[%clk 0:00:40]} 36. h4 {[%clk 0:01:46]}  Ne8 {[%clk 0:00:29]} 37. Bf5 {[%clk 0:01:40]}  Ke5 {[%clk 0:00:22]} 38. Bg6 {[%clk 0:01:39]}  Nd6+ {[%clk 0:00:22]} 39. Kc5 {[%clk 0:01:39]}  gxh4 {[%clk 0:00:20]} 40. gxh4 {[%clk 0:01:37]}  f5 {[%clk 0:00:16]} 41. b5 {[%clk 0:01:25]}  Ne4+ {[%clk 0:00:14]} 42. Kc6 {[%clk 0:01:25]}  Nxf2 {[%clk 0:00:14]} 43. Kb7 {[%clk 0:01:09]}  Ne4 {[%clk 0:00:09]} 44. Kxa7 {[%clk 0:01:08]}  Nc5 {[%clk 0:00:06]} 45. Bxh5 {[%clk 0:01:06]}  f4 {[%clk 0:00:02]} 46. b6 {[%clk 0:01:02]}  Ke4 {[%clk 0:00:02]} 47. b7 {[%clk 0:01:02]}  Nd7 {[%clk 0:00:03]} 48. b8=Q {[%clk 0:01:02]}  Nxb8 {[%clk 0:00:03]} 49. Kxb8 {[%clk 0:01:03]}  f3 {[%clk 0:00:03]} 50. Bxf3+ {[%clk 0:01:02]}  Kxf3 {[%clk 0:00:03]} 51. h5 {[%clk 0:01:02]} 1-0


[Site "https://www.chess.com"]

[Event "Titled Tuesday Blitz December 20 Early 2022"]
[White "Pitcher, John"]
[Black "GregLeBarbare"]
[WhiteFideId "411485"]
[WhiteElo "2210"]
[BlackElo "2242"]
[Result "1-0"]
[Round "03"]
[TimeControl "180+2"]
[Date "2022.12.20"]
[WhiteClock "0:01:08"]
[BlackClock "0:00:18"]

1. e4 {[%clk 0:02:51]}  e6 {[%clk 0:02:58]} 2. d4 {[%clk 0:02:50]}  d5 {[%clk 0:02:58]} 3. Nc3 {[%clk 0:02:51]}  Bb4 {[%clk 0:02:57]} 4. e5 {[%clk 0:02:51]}  c5 {[%clk 0:02:57]} 5. a3 {[%clk 0:02:51]}  Bxc3+ {[%clk 0:02:57]} 6. bxc3 {[%clk 0:02:52]}  Qc7 {[%clk 0:02:58]} 7. Qg4 {[%clk 0:02:51]}  f5 {[%clk 0:02:58]} 8. Qg3 {[%clk 0:02:51]}  Nc6 {[%clk 0:02:58]} 9. Ne2 {[%clk 0:02:38]}  Kf7 {[%clk 0:02:52]} 10. Nf4 {[%clk 0:02:34]}  Nge7 {[%clk 0:02:17]} 11. Be2 {[%clk 0:02:18]}  cxd4 {[%clk 0:02:16]} 12. cxd4 {[%clk 0:02:12]}  Nxd4 {[%clk 0:02:15]} 13. O-O {[%clk 0:02:12]}  Qxe5 {[%clk 0:01:36]} 14. Bd3 {[%clk 0:01:52]}  Bd7 {[%clk 0:00:53]} 15. Bd2 {[%clk 0:01:47]}  Rag8 {[%clk 0:00:52]} 16. Rae1 {[%clk 0:01:45]}  Qf6 {[%clk 0:00:46]} 17. h4 {[%clk 0:01:33]}  h6 {[%clk 0:00:45]} 18. h5 {[%clk 0:01:32]}  e5 {[%clk 0:00:28]} 19. Ng6 {[%clk 0:01:32]}  Nxg6 {[%clk 0:00:28]} 20. hxg6+ {[%clk 0:01:33]}  Qxg6 {[%clk 0:00:29]} 21. Qxe5 {[%clk 0:01:33]}  Ne6 {[%clk 0:00:26]} 22. Bxf5 {[%clk 0:01:30]}  Qf6 {[%clk 0:00:23]} 23. Qxd5 {[%clk 0:01:23]}  Rd8 {[%clk 0:00:22]} 24. Bc3 {[%clk 0:01:06]}  Qxc3 {[%clk 0:00:18]} 25. Bxe6+ {[%clk 0:01:06]}  Bxe6 {[%clk 0:00:19]} 26. Qxe6+ {[%clk 0:01:07]}  Kf8 {[%clk 0:00:18]} 27. Qe7+ {[%clk 0:01:08]} 1-0


[Site "https://www.chess.com"]

[Event "Titled Tuesday Blitz December 20 Early 2022"]
[White "ProfessorChess101"]
[Black "Groz, Jacky"]
[BlackFideId "626643"]
[WhiteElo "2662"]
[BlackElo "2052"]
[Result "1/2-1/2"]
[Round "03"]
[TimeControl "180+2"]
[Date "2022.12.20"]
[WhiteClock "0:00:33"]
[BlackClock "0:01:09"]

1. e4 {[%clk 0:03:00]}  e5 {[%clk 0:02:58]} 2. Nf3 {[%clk 0:03:00]}  Nf6 {[%clk 0:02:58]} 3. Nxe5 {[%clk 0:02:59]}  d6 {[%clk 0:02:59]} 4. Nf3 {[%clk 0:02:59]}  Nxe4 {[%clk 0:02:59]} 5. Nc3 {[%clk 0:03:00]}  Nxc3 {[%clk 0:02:59]} 6. dxc3 {[%clk 0:03:01]}  Be7 {[%clk 0:03:00]} 7. Bf4 {[%clk 0:03:01]}  Nc6 {[%clk 0:03:00]} 8. Qd2 {[%clk 0:02:59]}  Be6 {[%clk 0:03:00]} 9. Bd3 {[%clk 0:02:58]}  h6 {[%clk 0:02:56]} 10. O-O-O {[%clk 0:02:55]}  Qd7 {[%clk 0:02:57]} 11. Kb1 {[%clk 0:02:54]}  a6 {[%clk 0:02:56]} 12. Rhe1 {[%clk 0:02:51]}  O-O-O {[%clk 0:02:56]} 13. Nd4 {[%clk 0:02:51]}  Nxd4 {[%clk 0:02:56]} 14. cxd4 {[%clk 0:02:51]}  Bf6 {[%clk 0:02:42]} 15. c3 {[%clk 0:02:42]}  Rhe8 {[%clk 0:02:32]} 16. Qc2 {[%clk 0:02:38]}  Kb8 {[%clk 0:02:31]} 17. f3 {[%clk 0:02:36]}  Re7 {[%clk 0:02:19]} 18. Re2 {[%clk 0:02:16]}  Rde8 {[%clk 0:02:18]} 19. Rde1 {[%clk 0:02:17]}  g5 {[%clk 0:02:13]} 20. Bc1 {[%clk 0:02:16]}  Bg7 {[%clk 0:02:13]} 21. h3 {[%clk 0:02:04]}  Bd5 {[%clk 0:02:13]} 22. c4 {[%clk 0:01:49]}  Rxe2 {[%clk 0:02:12]} 23. Rxe2 {[%clk 0:01:49]}  Rxe2 {[%clk 0:02:13]} 24. Qxe2 {[%clk 0:01:36]}  Be6 {[%clk 0:02:13]} 25. d5 {[%clk 0:01:20]}  Bf5 {[%clk 0:02:12]} 26. g4 {[%clk 0:01:20]}  Bxd3+ {[%clk 0:02:09]} 27. Qxd3 {[%clk 0:01:21]}  Kc8 {[%clk 0:01:54]} 28. Qh7 {[%clk 0:01:14]}  Bf8 {[%clk 0:01:50]} 29. Qe4 {[%clk 0:01:09]}  Kd8 {[%clk 0:01:44]} 30. b3 {[%clk 0:01:07]}  Qe7 {[%clk 0:01:24]} 31. Qxe7+ {[%clk 0:01:05]}  Kxe7 {[%clk 0:01:22]} 32. Kc2 {[%clk 0:01:04]}  Bg7 {[%clk 0:01:19]} 33. Kd3 {[%clk 0:01:02]}  Ba1 {[%clk 0:01:09]} 34. Ke4 {[%clk 0:01:02]}  Kf6 {[%clk 0:01:09]} 35. Be3 {[%clk 0:00:49]}  b6 {[%clk 0:01:08]} 36. Bd2 {[%clk 0:00:34]}  a5 {[%clk 0:01:08]} 37. Be3 {[%clk 0:00:32]}  Bb2 {[%clk 0:01:07]} 38. Bd2 {[%clk 0:00:32]}  Ba1 {[%clk 0:01:08]} 39. Be3 {[%clk 0:00:32]}  Bb2 {[%clk 0:01:08]} 40. Bd2 {[%clk 0:00:33]}  Ba1 {[%clk 0:01:09]} 1/2-1/2


[Site "https://www.chess.com"]

[Event "Titled Tuesday Blitz December 20 Early 2022"]
[White "Rakesh, Kumar Jena"]
[Black "Butterfly"]
[WhiteFideId "5084822"]
[WhiteElo "2303"]
[BlackElo "2536"]
[Result "0-1"]
[Round "03"]
[TimeControl "180+2"]
[Date "2022.12.20"]
[WhiteClock "0:00:29"]
[BlackClock "0:00:43"]

1. e4 {[%clk 0:02:55]}  c6 {[%clk 0:02:58]} 2. d4 {[%clk 0:02:54]}  g6 {[%clk 0:02:58]} 3. Bd3 {[%clk 0:02:53]}  Bg7 {[%clk 0:02:58]} 4. c3 {[%clk 0:02:53]}  d5 {[%clk 0:02:59]} 5. e5 {[%clk 0:02:53]}  Nh6 {[%clk 0:02:58]} 6. Ne2 {[%clk 0:02:52]}  O-O {[%clk 0:02:58]} 7. Nd2 {[%clk 0:02:49]}  f6 {[%clk 0:02:58]} 8. exf6 {[%clk 0:02:48]}  exf6 {[%clk 0:02:54]} 9. Nf3 {[%clk 0:02:45]}  Bf5 {[%clk 0:02:54]} 10. Ng3 {[%clk 0:02:43]}  Bxd3 {[%clk 0:02:53]} 11. Qxd3 {[%clk 0:02:42]}  Re8+ {[%clk 0:02:53]} 12. Be3 {[%clk 0:02:41]}  Ng4 {[%clk 0:02:53]} 13. O-O-O {[%clk 0:02:40]}  Rxe3 {[%clk 0:02:24]} 14. fxe3 {[%clk 0:02:39]}  Nf2 {[%clk 0:02:24]} 15. Qe2 {[%clk 0:02:26]}  Nxd1 {[%clk 0:02:21]} 16. Rxd1 {[%clk 0:02:25]}  Bh6 {[%clk 0:02:20]} 17. Kb1 {[%clk 0:02:23]}  f5 {[%clk 0:02:21]} 18. h4 {[%clk 0:01:59]}  Qe7 {[%clk 0:02:07]} 19. h5 {[%clk 0:01:59]}  Qxe3 {[%clk 0:02:02]} 20. Qxe3 {[%clk 0:01:58]}  Bxe3 {[%clk 0:02:02]} 21. hxg6 {[%clk 0:01:55]}  hxg6 {[%clk 0:02:02]} 22. Ne5 {[%clk 0:01:44]}  Kg7 {[%clk 0:02:00]} 23. Ne2 {[%clk 0:01:30]}  Na6 {[%clk 0:01:57]} 24. Rd3 {[%clk 0:01:28]}  Bg5 {[%clk 0:01:56]} 25. Rh3 {[%clk 0:01:25]}  Bf6 {[%clk 0:01:50]} 26. Nd7 {[%clk 0:01:22]}  Re8 {[%clk 0:01:47]} 27. Nf4 {[%clk 0:01:11]}  Re1+ {[%clk 0:01:46]} 28. Kc2 {[%clk 0:01:10]}  Bg5 {[%clk 0:01:39]} 29. Nd3 {[%clk 0:01:10]}  Re2+ {[%clk 0:01:39]} 30. Kb3 {[%clk 0:01:09]}  Rxg2 {[%clk 0:01:38]} 31. N7e5 {[%clk 0:00:54]}  Nc7 {[%clk 0:01:33]} 32. Ne1 {[%clk 0:00:53]}  Re2 {[%clk 0:01:25]} 33. N1f3 {[%clk 0:00:52]}  Bf6 {[%clk 0:01:19]} 34. Rg3 {[%clk 0:00:52]}  Bxe5 {[%clk 0:01:03]} 35. Nxe5 {[%clk 0:00:51]}  Rxe5 {[%clk 0:01:03]} 36. dxe5 {[%clk 0:00:51]}  Ne6 {[%clk 0:01:03]} 37. Kc2 {[%clk 0:00:50]}  g5 {[%clk 0:01:02]} 38. Kd2 {[%clk 0:00:48]}  g4 {[%clk 0:01:01]} 39. Ke2 {[%clk 0:00:47]}  Kg6 {[%clk 0:01:01]} 40. b3 {[%clk 0:00:43]}  Kg5 {[%clk 0:01:00]} 41. c4 {[%clk 0:00:44]}  f4 {[%clk 0:01:00]} 42. Rg1 {[%clk 0:00:44]}  d4 {[%clk 0:00:58]} 43. Rh1 {[%clk 0:00:40]}  Kf5 {[%clk 0:00:56]} 44. Rh7 {[%clk 0:00:38]}  Ke4 {[%clk 0:00:51]} 45. Rh6 {[%clk 0:00:36]}  Kxe5 {[%clk 0:00:45]} 46. Rh5+ {[%clk 0:00:36]}  Ke4 {[%clk 0:00:45]} 47. Rh6 {[%clk 0:00:36]}  d3+ {[%clk 0:00:43]} 48. Kf2 {[%clk 0:00:30]}  Nd4 {[%clk 0:00:43]} 49. Rd6 {[%clk 0:00:29]}  d2 {[%clk 0:00:43]} 0-1


[Site "https://www.chess.com"]

[Event "Titled Tuesday Blitz December 20 Early 2022"]
[White "RamonManon0g"]
[Black "Nenezic, Marko"]
[BlackFideId "912123"]
[WhiteElo "2372"]
[BlackElo "2514"]
[Result "1-0"]
[Round "03"]
[TimeControl "180+2"]
[Date "2022.12.20"]
[WhiteClock "0:00:21"]
[BlackClock "0:00:01"]

1. e4 {[%clk 0:02:58]}  e6 {[%clk 0:02:56]} 2. d4 {[%clk 0:02:58]}  d5 {[%clk 0:02:56]} 3. Nd2 {[%clk 0:02:57]}  Nf6 {[%clk 0:02:56]} 4. e5 {[%clk 0:02:57]}  Nfd7 {[%clk 0:02:56]} 5. Ngf3 {[%clk 0:02:57]}  b6 {[%clk 0:02:56]} 6. c4 {[%clk 0:02:56]}  c6 {[%clk 0:02:50]} 7. Bd3 {[%clk 0:02:53]}  a5 {[%clk 0:02:49]} 8. O-O {[%clk 0:02:52]}  Ba6 {[%clk 0:02:48]} 9. b3 {[%clk 0:02:51]}  Be7 {[%clk 0:02:47]} 10. Bb2 {[%clk 0:02:51]}  b5 {[%clk 0:02:42]} 11. c5 {[%clk 0:02:45]}  b4 {[%clk 0:02:42]} 12. Qe2 {[%clk 0:02:45]}  Bxd3 {[%clk 0:02:41]} 13. Qxd3 {[%clk 0:02:45]}  Na6 {[%clk 0:02:38]} 14. Rae1 {[%clk 0:02:39]}  Nc7 {[%clk 0:02:38]} 15. g3 {[%clk 0:02:37]}  Nb5 {[%clk 0:02:36]} 16. h4 {[%clk 0:02:36]}  a4 {[%clk 0:02:35]} 17. Kg2 {[%clk 0:02:26]}  axb3 {[%clk 0:02:17]} 18. Qxb3 {[%clk 0:02:19]}  Qa5 {[%clk 0:02:13]} 19. Ra1 {[%clk 0:02:18]}  O-O {[%clk 0:02:11]} 20. Qd3 {[%clk 0:02:16]}  Nc3 {[%clk 0:01:50]} 21. Nb3 {[%clk 0:02:08]}  Qb5 {[%clk 0:01:48]} 22. Qc2 {[%clk 0:01:52]}  Ne4 {[%clk 0:01:35]} 23. Rfe1 {[%clk 0:01:45]}  f5 {[%clk 0:01:30]} 24. exf6 {[%clk 0:01:44]}  Bxf6 {[%clk 0:01:28]} 25. Bc1 {[%clk 0:01:38]}  Rae8 {[%clk 0:01:25]} 26. Bf4 {[%clk 0:01:35]}  e5 {[%clk 0:01:17]} 27. dxe5 {[%clk 0:01:35]}  Nxe5 {[%clk 0:01:16]} 28. Nfd4 {[%clk 0:01:32]}  Qb7 {[%clk 0:01:10]} 29. Rad1 {[%clk 0:01:05]}  Bxh4 {[%clk 0:00:41]} 30. Bxe5 {[%clk 0:00:59]}  Rxf2+ {[%clk 0:00:36]} 31. Qxf2 {[%clk 0:00:54]}  Nxf2 {[%clk 0:00:36]} 32. Kxf2 {[%clk 0:00:45]}  Rf8+ {[%clk 0:00:20]} 33. Kg2 {[%clk 0:00:45]}  Bg5 {[%clk 0:00:17]} 34. Ne6 {[%clk 0:00:44]}  Rf5 {[%clk 0:00:16]} 35. g4 {[%clk 0:00:41]}  Rxe5 {[%clk 0:00:15]} 36. Rxe5 {[%clk 0:00:40]}  Bf6 {[%clk 0:00:15]} 37. Re2 {[%clk 0:00:39]}  h6 {[%clk 0:00:15]} 38. Rf1 {[%clk 0:00:34]}  Qa6 {[%clk 0:00:15]} 39. Ref2 {[%clk 0:00:33]}  Qc4 {[%clk 0:00:12]} 40. Kh3 {[%clk 0:00:31]}  Qd3+ {[%clk 0:00:08]} 41. Rf3 {[%clk 0:00:31]}  Qe2 {[%clk 0:00:07]} 42. Ned4 {[%clk 0:00:26]}  Qxa2 {[%clk 0:00:06]} 43. Nxc6 {[%clk 0:00:26]}  Qa6 {[%clk 0:00:04]} 44. Nxb4 {[%clk 0:00:25]}  Qc4 {[%clk 0:00:03]} 45. c6 {[%clk 0:00:20]}  Qxb4 {[%clk 0:00:03]} 46. c7 {[%clk 0:00:20]}  Qc4 {[%clk 0:00:03]} 47. Rc1 {[%clk 0:00:20]}  Qxc1 {[%clk 0:00:01]} 48. Nxc1 {[%clk 0:00:20]}  d4 {[%clk 0:00:01]} 49. c8=Q+ {[%clk 0:00:21]} 1-0


[Site "https://www.chess.com"]

[Event "Titled Tuesday Blitz December 20 Early 2022"]
[White "RamyresCoelho"]
[Black "profofchess"]
[WhiteElo "2223"]
[BlackElo "2442"]
[Result "0-1"]
[Round "03"]
[TimeControl "180+2"]
[Date "2022.12.20"]
[WhiteClock "0:00:04"]
[BlackClock "0:00:38"]

1. e4 {[%clk 0:03:00]}  c5 {[%clk 0:02:56]} 2. Nf3 {[%clk 0:03:00]}  e6 {[%clk 0:02:57]} 3. d4 {[%clk 0:03:01]}  cxd4 {[%clk 0:02:57]} 4. c3 {[%clk 0:03:01]}  Nf6 {[%clk 0:02:54]} 5. e5 {[%clk 0:03:01]}  Nd5 {[%clk 0:02:54]} 6. Bc4 {[%clk 0:03:01]}  Nc6 {[%clk 0:02:46]} 7. Bxd5 {[%clk 0:02:58]}  exd5 {[%clk 0:02:46]} 8. cxd4 {[%clk 0:02:59]}  d6 {[%clk 0:02:46]} 9. exd6 {[%clk 0:02:56]}  Bxd6 {[%clk 0:02:45]} 10. O-O {[%clk 0:02:57]}  O-O {[%clk 0:02:46]} 11. Re1 {[%clk 0:02:58]}  Bg4 {[%clk 0:02:45]} 12. Be3 {[%clk 0:02:57]}  Qf6 {[%clk 0:02:38]} 13. Nbd2 {[%clk 0:02:51]}  Bb4 {[%clk 0:02:30]} 14. Re2 {[%clk 0:02:39]}  Bxd2 {[%clk 0:02:24]} 15. Rxd2 {[%clk 0:02:38]}  Rfe8 {[%clk 0:02:11]} 16. h3 {[%clk 0:02:36]}  Bxf3 {[%clk 0:02:11]} 17. Qxf3 {[%clk 0:02:37]}  Qxf3 {[%clk 0:02:11]} 18. gxf3 {[%clk 0:02:38]}  Rac8 {[%clk 0:02:05]} 19. Rc1 {[%clk 0:02:14]}  f6 {[%clk 0:01:59]} 20. Rdc2 {[%clk 0:02:07]}  Rcd8 {[%clk 0:01:51]} 21. a3 {[%clk 0:01:59]}  Kf7 {[%clk 0:01:48]} 22. b4 {[%clk 0:01:58]}  a6 {[%clk 0:01:48]} 23. h4 {[%clk 0:01:44]}  Rd7 {[%clk 0:01:47]} 24. Rxc6 {[%clk 0:01:11]}  bxc6 {[%clk 0:01:46]} 25. Rxc6 {[%clk 0:01:12]}  Ra8 {[%clk 0:01:45]} 26. a4 {[%clk 0:01:07]}  Rb7 {[%clk 0:01:44]} 27. Bd2 {[%clk 0:01:03]}  Ke7 {[%clk 0:01:37]} 28. Rc5 {[%clk 0:00:53]}  Kd6 {[%clk 0:01:36]} 29. Bf4+ {[%clk 0:00:53]}  Ke6 {[%clk 0:01:36]} 30. Bd2 {[%clk 0:00:51]}  h6 {[%clk 0:01:16]} 31. f4 {[%clk 0:00:50]}  Rd7 {[%clk 0:01:06]} 32. b5 {[%clk 0:00:38]}  axb5 {[%clk 0:01:01]} 33. axb5 {[%clk 0:00:39]}  Kf5 {[%clk 0:00:54]} 34. b6 {[%clk 0:00:34]}  Ke4 {[%clk 0:00:51]} 35. Ba5 {[%clk 0:00:22]}  Kxd4 {[%clk 0:00:47]} 36. Rc7 {[%clk 0:00:18]}  Rxc7 {[%clk 0:00:41]} 37. bxc7 {[%clk 0:00:17]}  Kc5 {[%clk 0:00:40]} 38. Bc3 {[%clk 0:00:10]}  Kc6 {[%clk 0:00:38]} 39. c8=Q+ {[%clk 0:00:05]}  Rxc8 {[%clk 0:00:38]} 40. Kg2 {[%clk 0:00:06]}  Kd6 {[%clk 0:00:38]} 41. Bd4 {[%clk 0:00:06]}  Ke6 {[%clk 0:00:37]} 42. Be3 {[%clk 0:00:07]}  Kf5 {[%clk 0:00:38]} 43. Kf3 {[%clk 0:00:07]}  Rc3 {[%clk 0:00:37]} 44. Ke2 {[%clk 0:00:07]}  Ke4 {[%clk 0:00:37]} 45. Kd2 {[%clk 0:00:06]}  Ra3 {[%clk 0:00:37]} 46. Ke2 {[%clk 0:00:06]}  Ra2+ {[%clk 0:00:37]} 47. Kf1 {[%clk 0:00:06]}  d4 {[%clk 0:00:37]} 48. Bc1 {[%clk 0:00:04]}  Ra1 {[%clk 0:00:38]} 49. Kg2 {[%clk 0:00:04]}  Rxc1 {[%clk 0:00:38]} 50. Kg3 {[%clk 0:00:04]}  d3 {[%clk 0:00:38]} 51. f3+ {[%clk 0:00:04]}  Ke3 {[%clk 0:00:39]} 52. Kg4 {[%clk 0:00:04]}  d2 {[%clk 0:00:39]} 53. f5 {[%clk 0:00:04]}  d1=Q {[%clk 0:00:38]} 0-1


[Site "https://www.chess.com"]